Cogmind - Beta 10.2 @@@ ROGUE MODE // 2020.12.19 @ 00:18:03 Player: Hermelin Result: Destroyed by L3-WIO(z) with Zionite Laser-S Performance ------------- Evolutions (3) 1500 Regions Visited (12) 2400 Robots Destroyed (147) 735 Value Destroyed (4489) 4489 Prototype IDs (21) 420 Alien Tech Used (0) 0 Bonus (725) 725 TOTAL SCORE: 10269 Bonus ------- High Alert Combat Kills 492 Follower Combat Kills 278 Friendly Fire -45 Cogmind --------- Core Integrity 0/700 Matter 180/300 Energy 44/100 System Corruption 0% Temperature Cool (9) Movement Core (100) Ox1 Location -7/Deep Caves Parts ------- > --- POWER (1) -------- (None) > --- PROPULSION (3) --- (None) > --- UTILITY (7) ------ Experimental Signal Interpreter Experimental Melee Analysis Suite Experimental Core Analyzer Makeshift Armor Plating Advanced Hacking Suite Makeshift System Shield > --- WEAPON (2) ------- Makeshift Spear > --- INVENTORY (4) ---- Makeshift Spear Self-destruct Interrupter (50) Peak State ------------ > --- POWER ------------ (None) > --- PROPULSION ------- VTOL Module Makeshift Flight Unit > --- UTILITY ---------- Medium Storage Unit Spectral Analyzer Experimental Signal Interpreter Experimental Melee Analysis Suite Experimental Core Analyzer Advanced Hacking Suite Makeshift System Shield > --- WEAPON ----------- Makeshift Hammer Makeshift Spear > --- INVENTORY -------- Medium Storage Unit Makeshift Salvage Targeting Computer Relay Coupler [NC] Advanced EMP Blaster Dirty Bomb Trap Dirty Bomb Trap Dirty Bomb Trap [Rating: 60] Favorites ----------- Power Heavy Ion Engine Engine Heavy Ion Engine Power Core Light Nuclear Core Propulsion Light Treads Treads Light Treads Leg Aluminum Leg Wheel Compact Wheel Flight Unit VTOL Module Utility Large Storage Unit Device Advanced Sensor Array Storage Large Storage Unit Processor Experimental Melee Analysis Suite Hackware Makeshift System Shield Protection Propulsion Shielding Weapon Makeshift Spear Energy Gun Improved EM Shotgun Energy Cannon Advanced Beam Cannon Ballistic Gun Light Assault Rifle Ballistic Cannon Light Cannon Launcher Mini Grenade Launcher Impact Weapon Makeshift Hammer Slashing Weapon Scythe Piercing Weapon Makeshift Spear Build | -11 -10 -10 -9 -9 -9 -8 -8 -7 -7 -7 -7 -7 ------- Run | Scr Mat Min Mat Min Exi Min Mat Fac Low Low Zio Dee Slots Evolved 6 | . . . 2 . . . 2 2 . . . . Power . | . . . . . . . . . . . . . Propulsion 1 | . . . 1 . . . . . . . . . Utility 5 | . . . 1 . . . 2 2 . . . . Weapon . | . . . . . . . . . . . . . Parts Attached 128 | 7 13 1 18 2 . 1 59 4 1 6 9 7 Power 12 | 1 1 1 2 1 . . 5 . . 1 . . Engine 10 | 1 1 1 2 1 . . 4 . . . . . Core 2 | . . . . . . . 1 . . 1 . . Reactor . | . . . . . . . . . . . . . Propulsion 35 | 2 2 . 9 . . 1 16 1 . 3 1 . Treads 19 | 2 2 . 9 . . 1 5 . . . . . Leg 6 | . . . . . . . 6 . . . . . Wheel 2 | . . . . . . . 2 . . . . . Hover . | . . . . . . . . . . . . . Flight 8 | . . . . . . . 3 1 . 3 1 . Utility 41 | 2 5 . 2 . . . 17 3 . 1 7 4 Device 4 | . . . . . . . 1 1 . . . 2 Storage 12 | 2 5 . 1 . . . 2 . . . 1 1 Processor 6 | . . . . . . . 2 . . . 4 . Hackware 5 | . . . . . . . 2 1 . . 2 . Protection 14 | . . . 1 . . . 10 1 . 1 . 1 Artifact . | . . . . . . . . . . . . . Weapon 40 | 2 5 . 5 1 . . 21 . 1 1 1 3 Energy Gun 1 | . . . . . . . 1 . . . . . Energy Cannon 2 | . . . 1 . . . 1 . . . . . Ballistic Gun 19 | 2 3 . 3 . . . 11 . . . . . Ballistic Cannon 2 | . 1 . . . . . 1 . . . . . Launcher 11 | . 1 . 1 1 . . 6 . . 1 . 1 Special Weapon . | . . . . . . . . . . . . . Impact Weapon 1 | . . . . . . . . . . . 1 . Slashing Weapon 1 | . . . . . . . 1 . . . . . Piercing Weapon 3 | . . . . . . . . . 1 . . 2 Special Melee Weapon . | . . . . . . . . . . . . . Unidentified Prototypes 8 | . . . 1 . . . 2 . . . 4 1 Parts Lost 43 | . . 1 3 . . 1 24 1 . 10 . 3 Power 8 | . . 1 1 . . . 4 . . 2 . . Propulsion 16 | . . . 1 . . 1 6 1 . 5 . 2 Utility 10 | . . . . . . . 7 . . 3 . . Weapon 9 | . . . 1 . . . 7 . . . . 1 Highest Loss Streak 9 | . . 1 1 . . 1 9 1 . 4 . 3 Average Slot Usage (%) 90 | . 99 100 97 100 100 100 94 92 92 86 80 77 Engine 6 | . 14 14 11 11 11 11 8 . . . . . Treads 14 | . 27 28 32 33 33 33 13 . . . . . Flight 7 | . . . . . . . . 23 23 19 13 14 Storage 21 | . 28 28 30 33 33 33 26 7 7 7 13 3 Processor 9 | . . . . . . . 3 7 7 7 23 23 Hackware 7 | . . . . . . . . 23 23 22 15 15 Protection 3 | . . . . . . . 13 2 7 8 . 2 Energy Cannon 2 | . . . 6 11 11 11 1 . . . . . Ballistic Gun 6 | . 19 14 11 2 . . 14 . . . . . Ballistic Cannon 2 | . 8 14 4 . . . . . . . . . Launcher 1 | . . . . 8 11 11 . . . . . . Impact Weapon 1 | . . . . . . . . . . . 6 . Piercing Weapon 3 | . . . . . . . . . 3 7 7 13 Naked Turns . | . . . . . . . . . . . . . Heaviest Build 72 | 15 42 42 63 63 61 61 72 17 17 19 21 21 Greatest Support 69 | 40 40 40 69 69 69 69 69 18 18 19 13 13 Greatest Overweight (x) 17 | . 1 1 1 . . . 17 . . 4 6 3 Average Overweight (x) . | . . 1 . . . . 1 . . . 2 . Largest Inventory Capacity 26 | 8 16 16 22 22 22 22 26 8 8 8 12 12 Average Capacity 15 | 5 13 16 20 22 22 22 21 8 8 8 11 6 Most Carried 22 | 3 16 16 22 22 22 22 22 8 8 8 12 12 Average Carried 14 | 1 12 15 20 21 21 21 20 7 7 7 10 5 Final Capacity 22 | 8 16 16 22 22 22 22 8 8 8 8 12 4 Final Carried 22 | 3 16 16 22 22 22 22 8 8 8 6 12 2 Class Distribution -------------------- 45% | Hacker-Mutant 32% | Hauler-Mutant 18% | Mutant 3% | Scavenger-Mutant Dominant Class ---------------- Mutant | -10/Materials Mutant | -10/Mines Hauler-Mutant | -9/Materials Hauler-Mutant | -9/Mines Hauler-Mutant | -9/Exiles Hauler-Mutant | -8/Mines Hauler-Mutant | -8/Materials Hacker-Mutant | -7/Factory Hacker-Mutant | -7/Lower Caves Hacker-Mutant | -7/Lower Caves Hacker-Mutant | -7/Zion Hacker-Mutant | -7/Deep Caves Resources | -11 -10 -10 -9 -9 -9 -8 -8 -7 -7 -7 -7 -7 ----------- Run | Scr Mat Min Mat Min Exi Min Mat Fac Low Low Zio Dee Matter Collected 3118 | 276 299 73 466 80 . 85 1663 . 45 55 76 . Remotely . | . . . . . . . . . . . . . Salvage Created 4558 | 82 454 85 1041 300 . 148 2330 . . 118 . . Parts 241 | 3 41 2 64 20 . 12 91 . . 8 . . Haulers Intercepted 9 | . 2 . 4 . . . 3 . . . . . Recyclers Shooed 4 | . . . 2 . . 1 1 . . . . . Parts Field Recycled . | . . . . . . . . . . . . . Retrieved Matter . | . . . . . . . . . . . . . Parts Self-Destructed 10 | . . . . . . . . . . 10 . . Prevented 3 | . . . . . . . . . . 3 . . Kills | -11 -10 -10 -9 -9 -9 -8 -8 -7 -7 -7 -7 -7 ------- Run | Scr Mat Min Mat Min Exi Min Mat Fac Low Low Zio Dee Combat Hostiles Destroyed 115 | . 16 3 25 11 . 6 49 . . 5 . . Melee 4 | . . . . . . . . . . 4 . . Guns 43 | . 6 1 12 . . . 24 . . . . . Cannons 24 | . 7 1 9 3 . 1 3 . . . . . AOE 44 | . 3 1 4 8 . 5 22 . . 1 . . Classes Destroyed 15 | 1 3 . 5 . . . 5 . . 1 . . Worker 4 | . . . 1 . . 2 1 . . . . . Builder 6 | . . . 1 1 . . 4 . . . . . Hauler 9 | . 2 . 4 . . . 3 . . . . . Recycler 6 | 1 . . . 1 . . 4 . . . . . Minesweeper 1 | . . . . . . . . . . 1 . . Mechanic 3 | . . . . . . . 3 . . . . . Operator 1 | . . . 1 . . . . . . . . . Watcher 2 | . . . . . . . 2 . . . . . Swarmer 31 | . 6 . 7 6 . 3 4 . . 5 . . Grunt 65 | . 10 3 14 5 . 3 30 . . . . . Brawler 1 | . . . . . . . 1 . . . . . Duelist 4 | . . . 1 . . . 3 . . . . . Protector 2 | . . . . . . . 2 . . . . . Sentry 10 | . . . 3 . . . 7 . . . . . Hunter 2 | . . . . . . . 2 . . . . . Best Kill Streak 8 | 1 3 2 5 6 . 3 8 . . 2 . . Combat Bots Only 5 | . 3 2 5 5 . 3 5 . . 2 . . Max Kills in Single Turn 3 | 1 1 1 3 3 . 2 3 . . 1 . . Gunslinging . | . . . . . . . . . . . . . Exploded 3 | . 1 1 2 2 . 2 3 . . 1 . . Melee 1 | . . . . . . . . . . 1 . . Uniques/NPCs Destroyed . | . . . . . . . . . . . . . Combat | -11 -10 -10 -9 -9 -9 -8 -8 -7 -7 -7 -7 -7 -------- Run | Scr Mat Min Mat Min Exi Min Mat Fac Low Low Zio Dee Damage Taken 7612 | . 439 203 606 139 . 518 3948 89 . 1094 . 576 Core 1354 | . 52 27 117 14 . 32 391 26 . 440 . 255 Absorbed by Shields . | . . . . . . . . . . . . . Core Remaining (%) 63 | 100 . 68 . . . 59 28 . . . . . Volleys Fired 354 | 3 45 11 80 14 . 32 165 . . 3 . 1 Largest 2 | 2 2 2 2 1 . 1 2 . . 1 . 1 Hottest 91 | 40 55 55 91 68 . 68 91 . . 36 . 36 Shots Fired 621 | 6 87 19 153 14 . 32 306 . . 3 . 1 Gun 433 | 6 67 8 88 . . . 264 . . . . . Cannon 143 | . 17 11 63 8 . 24 20 . . . . . Launcher 45 | . 3 . 2 6 . 8 22 . . 3 . 1 Special . | . . . . . . . . . . . . . Kinetic 502 | 6 84 19 121 . . . 272 . . . . . Thermal 73 | . . . 30 8 . 24 11 . . . . . Explosive 41 | . 3 . 2 6 . 8 22 . . . . . Electromagnetic 5 | . . . . . . . 1 . . 3 . 1 Robot Hit Streak 23 | 5 14 7 14 3 . 6 23 . . 4 . 5 Robot Miss Streak 8 | . 4 1 3 2 . 2 8 . . . . . Penetration Max . | . . . . . . . . . . . . . Secondary Targets 3 | . . . 1 . . . 2 . . . . . Max Gunslinging Chain 1 | . . . 1 . . . 1 . . . . . Shots Hit Robots 460 | 5 55 13 112 6 . 17 229 1 . 17 . 5 Core Hits 276 | 2 33 6 45 14 . 21 145 . . 8 . 2 Critical Hits 13 | . 1 1 4 . . 3 3 . . 1 . . Critical Kills 4 | . 1 . 1 . . . 1 . . 1 . . Critical Parts Destroyed 8 | . . 1 2 . . 3 2 . . . . . Melee Attacks 71 | . . . . . . . . 9 . 30 27 5 Impact 21 | . . . . . . . . . . . 21 . Slashing 9 | . . . . . . . . 9 . . . . Piercing 41 | . . . . . . . . . . 30 6 5 Sneak Attacks 2 | . . . . . . . . 1 . 1 . . Combat Hostiles . | . . . . . . . . . . . . . Follow-up Attacks 1 | . . . . . . . . . . . . 1 Damage Inflicted 12594 | 48 817 246 1925 703 . 1246 6756 102 . 561 . 190 Guns 4140 | 48 341 86 646 . . . 3019 . . . . . Cannons 1917 | . 244 84 989 85 . 245 270 . . . . . Explosions 5808 | . 213 76 290 618 . 1001 3467 . . 89 . 54 Melee 710 | . . . . . . . . 102 . 472 . 136 Ramming 19 | . 19 . . . . . . . . . . . Kinetic 5074 | 48 585 170 1144 . . . 3127 . . . . . Thermal 1320 | . . 76 491 85 . 524 144 . . . . . Explosive 5310 | . 213 . 290 618 . 722 3467 . . . . . Electromagnetic 161 | . . . . . . . 18 . . 89 . 54 Impact . | . . . . . . . . . . . . . Slashing 102 | . . . . . . . . 102 . . . . Piercing 608 | . . . . . . . . . . 472 . 136 Highest Corruption 2 | . . . . . . . 2 1 1 2 2 . Average Corruption 1 | . . . . . . . 2 1 1 1 2 . Corruption Purged . | . . . . . . . . . . . . . Effects 23 | . . . . . . . 19 . . 4 . . Message Errors 5 | . . . . . . . 4 . . 1 . . Heat Flow Errors 6 | . . . . . . . 5 . . 1 . . Energy Discharges 4 | . . . . . . . 3 . . 1 . . Data Loss (minor) 2 | . . . . . . . 1 . . 1 . . Targeting Errors 4 | . . . . . . . 4 . . . . . Weapon Failures 2 | . . . . . . . 2 . . . . . Overload Shots . | . . . . . . . . . . . . . Overflow Damage 303 | . 28 . 12 13 . 44 74 . . 130 . 2 Projectiles 33 | . 15 . 2 . . 16 . . . . . . Explosions 180 | . 13 . 10 13 . 28 74 . . 40 . 2 Melee 90 | . . . . . . . . . . 90 . . Knockbacks 19 | . 4 1 9 . . . 5 . . . . . Impact . | . . . . . . . . . . . . . Kinetic 18 | . 4 1 8 . . . 5 . . . . . Secondary 1 | . . . 1 . . . . . . . . . Self-Inflicted Damage 563 | . . 33 24 92 . 24 295 . . 95 . . Shots 20 | . . 1 1 2 . 2 10 . . 4 . . Rammed 2 | . 2 . . . . . . . . . . . Targets Rammed 2 | . 2 . . . . . . . . . . . Kicked . | . . . . . . . . . . . . . Crushed . | . . . . . . . . . . . . . Highest Temperature 400 | . 84 28 106 108 . 400 269 . . 223 . 25 Average Temperature 52 | . 27 15 28 36 . 129 51 . . 116 . 15 Received Heat Transfer 2544 | . 162 99 225 12 . 216 1467 12 . 189 . 162 Effects 5 | . . . . . . 1 4 . . . . . Energy Bleed 3 | . . . . . . 1 2 . . . . . Interference 2 | . . . . . . . 2 . . . . . Siege Activations . | . . . . . . . . . . . . . Robots Corrupted . | . . . . . . . . . . . . . Combat Hostiles . | . . . . . . . . . . . . . Parts Fried . | . . . . . . . . . . . . . Impact Corruptions . | . . . . . . . . . . . . . Robots Melted . | . . . . . . . . . . . . . Combat Hostiles . | . . . . . . . . . . . . . Parts Melted 2 | . . . 1 . . 1 . . . . . . Heat Transferred 2302 | . . 150 851 148 . 894 259 . . . . . Parts Sabotaged . | . . . . . . . . . . . . . Parts Stolen . | . . . . . . . . . . . . . Parts Stripped . | . . . . . . . . . . . . . Power Chain Reactions 1 | . . . . . . . . . . 1 . . Missiles Intercepted . | . . . . . . . . . . . . . Alert | -11 -10 -10 -9 -9 -9 -8 -8 -7 -7 -7 -7 -7 ------- Run | Scr Mat Min Mat Min Exi Min Mat Fac Low Low Zio Dee Peak Influence 850 | 5 311 145 466 325 . 521 850 538 . . . . Initial 386 | . 3 69 . 120 . . 163 386 . . . . Average 296 | 1 138 79 249 227 . 358 519 423 . . . . Maximum Alert Level 3 | . 1 . 2 1 . 2 3 2 . . . . Low Security (%) 41 | 100 79 100 27 41 . 18 9 . . . . . Level 1 29 | . 20 . 66 58 . 31 17 27 . . . . Level 2 24 | . . . 6 . . 50 58 72 . . . . Level 3 4 | . . . . . . . 13 . . . . . Level 4 . | . . . . . . . . . . . . . Level 5 . | . . . . . . . . . . . . . High Security . | . . . . . . . . . . . . . Max Security . | . . . . . . . . . . . . . Squads Dispatched 20 | . 4 . 4 1 . . 10 1 . . . . Investigation 10 | . 4 . 2 . . . 3 1 . . . . Extermination . | . . . . . . . . . . . . . Reinforcement 3 | . . . 2 . . . 1 . . . . . Assault 7 | . . . . 1 . . 6 . . . . . Garrison . | . . . . . . . . . . . . . Intercept . | . . . . . . . . . . . . . Construction Impeded 2 | . . . 1 . . . 1 . . . . . Haulers Reinforced . | . . . . . . . . . . . . . Stealth | -11 -10 -10 -9 -9 -9 -8 -8 -7 -7 -7 -7 -7 --------- Run | Scr Mat Min Mat Min Exi Min Mat Fac Low Low Zio Dee Distress Signals 8 | . 1 . 5 . . . 2 . . . . . Communications Jammed . | . . . . . . . . . . . . . Distress Signals . | . . . . . . . . . . . . . Times Spotted 210 | . 26 4 39 15 . 17 75 10 . 21 . 3 Peak Tracking Total 7 | . 4 2 4 5 . 4 7 6 . 6 . 3 Tactical Retreats 18 | . 1 . . . . 4 2 4 . 7 . . Traps | -11 -10 -10 -9 -9 -9 -8 -8 -7 -7 -7 -7 -7 ------- Run | Scr Mat Min Mat Min Exi Min Mat Fac Low Low Zio Dee Traps Triggered 3 | . . . 1 . . . 2 . . . . . Indirectly . | . . . . . . . . . . . . . Trap Hack Attempts . | . . . . . . . . . . . . . Triggered . | . . . . . . . . . . . . . Disarmed . | . . . . . . . . . . . . . Reprogrammed . | . . . . . . . . . . . . . Reused 3 | . . . . . . . . . . 2 . 1 Traps Extracted . | . . . . . . . . . . . . . Installed 7 | . . . . . . . . . . 3 . 4 Triggered 3 | . . . . . . . . . . 3 . . Fabricated Traps 1 | . . . . . . . . . . . . 1 Machines | -11 -10 -10 -9 -9 -9 -8 -8 -7 -7 -7 -7 -7 ---------- Run | Scr Mat Min Mat Min Exi Min Mat Fac Low Low Zio Dee Machines Disabled 29 | . 2 4 . 5 . 13 5 . . . . . Max in Single Turn 8 | . 1 1 . 2 . 8 1 . . . . . Garrison Access 1 | . . . . . . . . 1 . . . . Machines Sabotaged . | . . . . . . . . . . . . . Garrisons Compromised . | . . . . . . . . . . . . . Overloaded Fab Kills . | . . . . . . . . . . . . . Fab Network Shutdowns . | . . . . . . . . . . . . . Hacking | -11 -10 -10 -9 -9 -9 -8 -8 -7 -7 -7 -7 -7 --------- Run | Scr Mat Min Mat Min Exi Min Mat Fac Low Low Zio Dee Machines Accessed 45 | . 11 . 8 . 4 . 11 11 . . . . Terminals 25 | . 8 . 5 . . . 8 4 . . . . Fabricators 3 | . . . . . . . . 3 . . . . Repair Stations 2 | . 1 . . . . . 1 . . . . . Recycling Units 4 | . 2 . 1 . . . 1 . . . . . Scanalyzers 6 | . . . 2 . . . 1 3 . . . . Garrison Access 1 | . . . . . . . . 1 . . . . Total Hacks 141 | . 31 . 33 . 4 . 33 40 . . . . Successful 87 | . 18 . 26 . 4 . 19 20 . . . . Failed 54 | . 13 . 7 . . . 14 20 . . . . Catastrophic 9 | . 3 . . . . . 4 2 . . . . Database Lockouts . | . . . . . . . . . . . . . Manual 51 | . 17 . 11 . . . 17 6 . . . . Terminals 82 | . 23 . 17 . . . 26 16 . . . . Fabricators 8 | . . . . . . . . 8 . . . . Repair Stations 4 | . 3 . . . . . 1 . . . . . Recycling Units 9 | . 5 . 2 . . . 2 . . . . . Scanalyzers 30 | . . . 14 . . . 4 12 . . . . Garrison Access 4 | . . . . . . . . 4 . . . . Terminal Hacks 33 | . 10 . 5 . 4 . 9 5 . . . . Record 4 | . . . . . 4 . . . . . . . Part Schematic 1 | . . . . . . . 1 . . . . . Robot Schematic 1 | . 1 . . . . . . . . . . . Robot Analysis 3 | . 2 . 1 . . . . . . . . . Prototype ID Bank 8 | . 3 . 2 . . . 3 . . . . . Branch Access Points 2 | . . . . . . . 1 1 . . . . Machine Index 1 | . . . . . . . . 1 . . . . Terminal Index 3 | . 1 . . . . . 1 1 . . . . Unreport Threat 2 | . . . . . . . 1 1 . . . . Locate Traps 6 | . 3 . 1 . . . 1 1 . . . . Hauler Manifests 2 | . . . 1 . . . 1 . . . . . Fabricator Hacks 2 | . . . . . . . . 2 . . . . Load Schematic 2 | . . . . . . . . 2 . . . . Repair Station Hacks 2 | . 2 . . . . . . . . . . . Scan Component 1 | . 1 . . . . . . . . . . . Repair 1 | . 1 . . . . . . . . . . . Recycling Unit Hacks 4 | . 2 . 1 . . . 1 . . . . . Report Inventory 4 | . 2 . 1 . . . 1 . . . . . Scanalyzer 27 | . . . 14 . . . 4 9 . . . . Insert Component 12 | . . . 6 . . . 2 4 . . . . Analyze 15 | . . . 8 . . . 2 5 . . . . Garrison Access Hacks 1 | . . . . . . . . 1 . . . . Seal Access 1 | . . . . . . . . 1 . . . . Unauthorized Hacks 18 | . 4 . 6 . . . 5 3 . . . . Terminals 14 | . 2 . 5 . . . 4 3 . . . . Track 4 | . . . 2 . . . 1 1 . . . . Assimilate 1 | . . . . . . . . 1 . . . . Botnet 6 | . 1 . 2 . . . 2 1 . . . . Operators 3 | . 1 . 1 . . . 1 . . . . . Fabricators . | . . . . . . . . . . . . . Repair Stations . | . . . . . . . . . . . . . Recycling Units 4 | . 2 . 1 . . . 1 . . . . . Tunnel 4 | . 2 . 1 . . . 1 . . . . . Scanalyzers . | . . . . . . . . . . . . . Garrison Access . | . . . . . . . . . . . . . Data Cores Recovered . | . . . . . . . . . . . . . Used . | . . . . . . . . . . . . . Hacking Detections 37 | . 9 . 7 . . . 11 10 . . . . Full Trace Events 5 | . 2 . 1 . . . 1 1 . . . . Feedback Events . | . . . . . . . . . . . . . Feedback Blocked . | . . . . . . . . . . . . . Robot Schematics Acquired 1 | . 1 . . . . . . . . . . . Robots Built . | . . . . . . . . . . . . . Matter . | . . . . . . . . . . . . . Time . | . . . . . . . . . . . . . Total Robot Build Rating . | . . . . . . . . . . . . . Part Schematics Acquired 12 | . . . 6 . . . 2 4 . . . . Parts Built . | . . . . . . . . . . . . . Matter . | . . . . . . . . . . . . . Time . | . . . . . . . . . . . . . Total Part Build Rating . | . . . . . . . . . . . . . Parts Repaired 1 | . 1 . . . . . . . . . . . Time 26 | . 26 . . . . . . . . . . . Parts Recycled . | . . . . . . . . . . . . . Recycled Matter . | . . . . . . . . . . . . . Retrieved Matter . | . . . . . . . . . . . . . Retrieved Components . | . . . . . . . . . . . . . Parts Scanalyzed 12 | . . . 6 . . . 2 4 . . . . Part Schematics Acquired 11 | . . . 6 . . . 1 4 . . . . Parts Damaged 1 | . . . 1 . . . . . . . . . Bothacking | -11 -10 -10 -9 -9 -9 -8 -8 -7 -7 -7 -7 -7 ------------ Run | Scr Mat Min Mat Min Exi Min Mat Fac Low Low Zio Dee Used RIF Installer . | . . . . . . . . . . . . . Robots Hacked . | . . . . . . . . . . . . . Non-combat . | . . . . . . . . . . . . . Combat . | . . . . . . . . . . . . . Robot Hacks Applied . | . . . . . . . . . . . . . Relay Couplers Released . | . . . . . . . . . . . . . Robots Rewired . | . . . . . . . . . . . . . Allies Hacked . | . . . . . . . . . . . . . Hacks Repelled . | . . . . . . . . . . . . . Allies | -11 -10 -10 -9 -9 -9 -8 -8 -7 -7 -7 -7 -7 -------- Run | Scr Mat Min Mat Min Exi Min Mat Fac Low Low Zio Dee Total Allies 4 | . . 2 . 1 . . . 1 . . . . Largest Group 2 | . . 2 2 1 1 1 . 1 . . . . Highest-Rated Group 44 | . . 44 44 31 31 31 . 26 . . . . Highest-Rated Ally 31 | . . 31 31 31 31 31 . 26 . . . . Total Orders . | . . . . . . . . . . . . . Ally Attacks 45 | . . 7 11 11 . 16 . . . . . . Total Damage 727 | . . 128 167 199 . 233 . . . . . . Kills 9 | . . 1 1 3 . 4 . . . . . . Allies Corrupted . | . . . . . . . . . . . . . Allies Melted . | . . . . . . . . . . . . . Intel | -11 -10 -10 -9 -9 -9 -8 -8 -7 -7 -7 -7 -7 ------- Run | Scr Mat Min Mat Min Exi Min Mat Fac Low Low Zio Dee Robot Analysis Total 3 | . 2 . 1 . . . . . . . . . Derelict Logs Recovered 5 | . . 1 . 2 . . . . . 2 . . Drone Launches . | . . . . . . . . . . . . . Drone Recoveries . | . . . . . . . . . . . . . Exploration | -11 -10 -10 -9 -9 -9 -8 -8 -7 -7 -7 -7 -7 ------------- Run | Scr Mat Min Mat Min Exi Min Mat Fac Low Low Zio Dee Turns Passed 14299 | 114 1446 903 1307 730 645 546 2191 348 269 881 4523 396 Spaces Moved 8805 | 53 710 474 600 422 400 297 1051 905 730 1001 1902 260 Core 472 | 3 . . . . . . 1 . . 2 463 3 Treads 3346 | 50 710 474 600 422 400 297 393 . . . . . Legs 193 | . . . . . . . 193 . . . . . Wheels 374 | . . . . . . . 374 . . . . . Hover . | . . . . . . . . . . . . . Flight 4420 | . . . . . . . 90 905 730 999 1439 257 Fastest Speed 34 | 50 160 180 160 160 160 160 34 34 34 34 37 37 Average Speed 129 | 153 171 180 167 160 160 160 149 34 34 44 191 80 Slowest Speed 900 | 160 180 180 180 160 160 160 900 34 34 250 350 200 Overloaded Moves . | . . . . . . . . . . . . . Propulsion Burnouts . | . . . . . . . . . . . . . Robots Hopped 5 | . . . . . . . . 5 . . . . Cave-ins Triggered . | . . . . . . . . . . . . . Exploration Rate (%) 63 | 4 91 92 48 96 78 76 60 24 73 79 82 25 Regions Visited 12 Branch Regions 8 Pre-discovered Areas 5 | . 2 . 1 . . . 1 . . . 1 . Known Exits Taken 5 | . . . . . . . 1 1 1 1 1 . Unknown Exits Taken 7 | 1 1 1 1 1 1 1 . . . . . . Scrap Searched 12 | . . 1 . 2 . . . . 5 2 2 . Spaces Dug 10 | . . . . . . . . 8 . 1 1 . Terrain Destroyed 389 | . 14 22 4 66 . 148 123 8 . 3 1 . Melee 10 | . . . . . . . . 8 . 1 1 . Projectile 4 | . . . . . . 4 . . . . . . AOE 375 | . 14 22 4 66 . 144 123 . . 2 . . Terrain Rammed . | . . . . . . . . . . . . . Walls Destroyed . | . . . . . . . . . . . . . Machines Disabled . | . . . . . . . . . . . . . Actions | -11 -10 -10 -9 -9 -9 -8 -8 -7 -7 -7 -7 -7 --------- Run | Scr Mat Min Mat Min Exi Min Mat Fac Low Low Zio Dee Total 11162 | 77 871 507 772 463 407 336 1430 927 750 1409 2766 447 Wait 1579 | 12 70 19 37 22 . 6 77 4 17 350 819 146 Move 8783 | 52 709 473 599 421 399 296 1050 894 729 1000 1901 260 Hop 5 | . . . . . . . . 5 . . . . Pick Up 119 | 3 18 2 21 2 4 1 34 7 1 9 10 7 Fast Attach 39 | 7 1 . . . . . 19 . 1 1 6 4 Attach 45 | . . 1 6 . . 1 26 3 . 5 1 2 Detach 3 | . . . . . . . 2 . . 1 . . Swap 44 | . 12 . 12 2 . . 14 1 . . 2 1 Drop 118 | . 14 1 17 2 4 . 43 4 2 7 6 18 Fire 354 | 3 45 11 80 14 . 32 165 . . 3 . 1 Melee 64 | . . . . . . . . 9 . 30 21 4 Ram . | . . . . . . . . . . . . . Kick . | . . . . . . . . . . . . . Crush 2 | . 2 . . . . . . . . . . . Escape Stasis . | . . . . . . . . . . . . . Rewire . | . . . . . . . . . . . . . Trap 7 | . . . . . . . . . . 3 . 4 Miscellaneous . | . . . . . . . . . . . . . Route ------- -11/Scrapyard -10/Materials (discovered 4 exits: *Mat x2 / [*Min x2]) -10/Mines (discovered 2 exits: *Mat x2) -9/Materials (discovered 3 exits: *Mat / [*Min] / [*Sto]) -9/Mines (discovered 4 exits: *Mat x2 / *Exi / *Zio) -9/Exiles (discovered 2 exits: [*Min x2]) -8/Mines -8/Materials (discovered 2 exits: *Fac x2) -7/Factory (discovered 3 exits: *Fac / *Low x2) -7/Lower Caves -7/Lower Caves (discovered 2 exits: *Fac / *Zio) -7/Zion (discovered 2 exits: *Dee / *Pro) -7/Deep Caves History --------- Turn | Location | Event 29 | -11/Scrapyard | Discovered new exit (range 15) 115 | -11/Scrapyard | Entered Materials 313 | -10/Materials | Build established: Mutant 426 | -10/Materials | Discovered new exit (range 11) 509 | -10/Materials | Discovered new exit (range 10) 792 | -10/Materials | Discovered new exit (range 4) 945 | -10/Materials | Discovered new exit (range 16) 1434 | -10/Materials | Repaired Lgt. Treads 1561 | -10/Materials | Entered Mines 1775 | -10/Mines | Discovered new exit (range 5) 2090 | -10/Mines | Received a Rocket Launcher from a helpful Derelict 2102 | -10/Mines | Discovered new exit (range 8) 2166 | -10/Mines | Learned Materials emergency access door positions 2464 | -10/Mines | Entered Materials 2464 | -9/Materials | Accompanied by 2 allies 2464 | -9/Materials | Evolved 2 slots: Propulsion x1, Utility x1 2469 | -9/Materials | Led the pair of lost Derelicts to an unsafe place 2593 | -9/Materials | Discovered new exit (range 16) 3000 | -9/Materials | Build established: Hauler-Mutant 3208 | -9/Materials | Discovered new exit (range 10) 3335 | -9/Materials | Discovered new exit (range 3) 3771 | -9/Materials | Entered Mines 4093 | -9/Mines | Discovered new exit (range 6) 4112 | -9/Mines | Learned location of 1 exit from Proximity Caves 4246 | -9/Mines | Met a Derelict testing a Signal Generator 4265 | -9/Mines | Found Signal Generator 4425 | -9/Mines | A Derelict revealed a hidden shortcut to a safe place 4426 | -9/Mines | Discovered new exit (range 13) 4495 | -9/Mines | Deemed a non-threat by the Exiles lab entrance 4495 | -9/Mines | Discovered new exit (range 5) 4501 | -9/Mines | Entered Exiles 4501 | -9/Exiles | Found Exiles lab abandoned 4501 | -9/Exiles | Accompanied by 1 ally 4563 | -9/Exiles | Discovered new exit (range 15) 5127 | -9/Exiles | Discovered new exit (range 14) 5146 | -9/Exiles | Entered Mines 5146 | -8/Mines | Accompanied by 1 ally 5563 | -8/Mines | Discovered new exit (range 9) 5692 | -8/Mines | Entered Materials 5692 | -8/Materials | Evolved 2 slots: Utility x2 5693 | -8/Materials | Identified exit to Factory 6323 | -8/Materials | Lost 3 parts (1p1n1u) 6390 | -8/Materials | Discovered exit to Factory (range 12) 6492 | -8/Materials | First assault squad dispatched 6593 | -8/Materials | Lost 4 parts (1p2u1w) 7067 | -8/Materials | Build established: Scavenger-Mutant 7414 | -8/Materials | Core integrity fell below 50% 7448 | -8/Materials | Lost 9 parts (2p3n1u3w) 7479 | -8/Materials | Build established: Hauler-Mutant 7883 | -8/Materials | Entered Factory 7883 | -7/Factory | Evolved 2 slots: Utility x2 7957 | -7/Factory | Identified exit to Lower Caves 8054 | -7/Factory | Discovered new exit (range 16) 8132 | -7/Factory | Build established: Hacker-Mutant 8231 | -7/Factory | Entered Lower Caves 8345 | -7/Lower Caves | Encountered a Warlord checkpoint 8382 | -7/Lower Caves | Discovered new exit (range 15) 8449 | -7/Lower Caves | Spotted B-75 Beast 8500 | -7/Lower Caves | Identified exit to Lower Caves 8500 | -7/Lower Caves | Entered another Lower Caves area 8503 | -7/Lower Caves | Spotted B-75 Beast 8509 | -7/Lower Caves | Discovered new exit (range 15) 8512 | -7/Lower Caves | Identified exit to Factory 8560 | -7/Lower Caves | Encountered a Warlord checkpoint 9006 | -7/Lower Caves | Learned Factory garrison access intel 9197 | -7/Lower Caves | Lost 3 parts (1p1n1u) 9218 | -7/Lower Caves | Attracted the attention of an 0b10 checkpoint 9263 | -7/Lower Caves | Lost 4 parts (1p3n) 9318 | -7/Lower Caves | Attracted the attention of an 0b10 base 9347 | -7/Lower Caves | Core integrity fell below 50% 9365 | -7/Lower Caves | Lost 3 parts (1n2u) 9371 | -7/Lower Caves | Discovered new exit (range 6) 9379 | -7/Lower Caves | Identified exit to Zion 9381 | -7/Lower Caves | Entered Zion 9521 | -7/Zion | System corruption cleaned by Quarantine Array 9597 | -7/Zion | Discovered new exit (range 7) 9629 | -7/Zion | Identified exit to Proximity Caves 9689 | -7/Zion | Found Prototype Processor 9689 | -7/Zion | Identified Exp. Melee Analysis Suite 9693 | -7/Zion | Found Prototype Processor 9693 | -7/Zion | Identified Exp. Signal Interpreter 9697 | -7/Zion | Found Prototype Processor 9697 | -7/Zion | Identified Exp. Core Analyzer 9701 | -7/Zion | Found Prototype Processor 9701 | -7/Zion | Identified Spectral Analyzer 9931 | -7/Zion | Learned location of Quarantine (-3) 10141 | -7/Zion | Given the Hacking Drone Bay 10462 | -7/Zion | Found Prototype Device 11071 | -7/Zion | Discovered new exit (range 3) 11075 | -7/Zion | Identified exit to Deep Caves 13904 | -7/Zion | Entered Deep Caves 14100 | -7/Deep Caves | Identified Bomb Factory No. 2 14284 | -7/Deep Caves | Attacked by Z-Imprinter 14296 | -7/Deep Caves | Core integrity fell below 20% 14300 | -7/Deep Caves | Destroyed by L3-WIO(z) with Zionite Laser-S Last Messages --------------- 14155_ Acquired Med. Storage Unit. 14156_ Dropped Med. Storage Unit. 14157_ Acquired Mak. Spear. 14201_ Dropped Dirty Bomb Trap. 14202_ Installed Dirty Bomb Trap. 14203_ Acquired Med. Storage Unit. 14205_ Acquired Mak. Sensor Array. 14212_ Dropped Mak. Sensor Array. 14213_ Dropped Med. Storage Unit. 14220_ Acquired Bomb Factory No. 2. 14228_ Dropped Bomb Factory No. 2. 14275_ NEW_ZION: Z-Facility proximity alert. 14284_ Mak. Flight Unit destroyed. 14284_ VTOL Module destroyed. Z-Imprinter: GET AWAY FROM HERE! I've worked too hard for our future just to have you ruin everything! 14287_ Mak. Spear follow-up attack on Z-Imprinter. 14293_ Destroyed Prototype Hover Unit. 14296_ Adv. EMP Blaster destroyed. 14298_ UU-KVE(z) IFF system glitched. Map ----- +----------------------------------------------------+ | | | | | ?????????????????????????????????????????????????? | | ?????????????????????????????????????????????????? | | ???????????????????????????????????????????####??? | | ??????????????????????????????????????###### ##?? | | ???????????#?#????????######?????###### #?? | | ???????? ## # ?????### ##????# ## ##? | | ???????? ##### #????# #? | | ??????? #????# #### # | | ??????? #????# ###??## | | ?????? #????## ##?????## | | ?????? #????# ##??????# | | ?????? ##?### ##?????# | | ?????? ##;## ##????# # | | ?????? #????## ## | | ???? ##?????###? | | ??? ^ ##???????? | | ???" ^ ### #####???? | | ??"" ???# ##??# | | ??"" zz # ????## ### | | ??"" ?????## | | " " #????## | | ##???# | | I ;#???# | | @ #????# | | ;#????## ! | | "" ##?????## !/ | | ?""" #??????## ! | | #??????## | | """ ;#?????## | | ?""" ###?????# ### | | ??""" ^##??????# ## ####### | | ???"" ##?????# ?## ##???# | | ???"" #?????## ???# #???# | | ???" #??????# ???## #???# | | ??" ##??????#?????## #???? | | ? #??????????????# #???? | | ??"" ##?????????????# ##??? | | ??? #?????????????# #??? | | ???? ##????????????# #??? | | ?????? #????????????# ##??? | | ????????? ##???????????####???? | | ????????? #??????????????????? | | ????????? #??????????????????? | | ????????? #??????????????????? | | ??????????### #??????????????????? | | ????????????### #### !! #??????????????????? | | ??????????????#####???## ! ##??????????????????? | | ???????????????????????## ###???????????????????? | +----------------------------------------------------+ Best States ------------- Heat Dissipation 34 Energy Generation 18 Energy Capacity 280 Matter Stores 300 Matter Capacity 300 Sight Range 24 Robot Scan Range 22 Terrain Scan Density 10 Power Amplification 20 Armor Coverage 375 Core Shielding 20 Propulsion Shielding 33 Evasion (%) 63 Targeting Accuracy 8 Melee Accuracy 12 Core Analysis 15 Recoil Reduction 3 Offensive Hacking 14 Defensive Hacking 20 Item Schematics ----------------- Hacking Suite | -9/Materials | Scanalyzed Mak. Salvage Targeting Computer | -9/Materials | Scanalyzed Med. Storage Unit | -9/Materials | Scanalyzed Lgt. Angular Momentum Engine | -9/Materials | Scanalyzed VTOL Module | -9/Materials | Scanalyzed Lgt. Armor Plating | -9/Materials | Scanalyzed Katana | -8/Materials | Scanalyzed System Shield | -8/Materials | Hacked Cld. VTOL Module | -7/Factory | Scanalyzed Power Amplifier | -7/Factory | Scanalyzed Adv. Sensor Array | -7/Factory | Scanalyzed Imp. Light Armor Plating | -7/Factory | Scanalyzed Robot Schematics ------------------ M-13 Machinist | -10/Materials | Hacked Fabricated ------------ Nothing Alien Tech Used ----------------- None Achievements -------------- None Challenges ------------ None Game ------ Seed GuidanceOmegaChip Manual? 0 Play Time 01:50:03 Cumulative 427.2 hours Start 2020.12.17 @ 19:18:21 End 2020.12.19 @ 00:18:03 Sessions 5 Manual Loads 0 Difficulty Rogue Special Mode None Game No. 160 Rogue 157 Adventurer 3 Explorer 0 Win Type - Total 8 Types 5/1/0/1/0/1/0/0/0 Lore% 90 Gallery% 94 Achievement% 78 Wizard Run 0 Options --------- ASCII 0 Keyboard 0 Movement Numpad Keybinds 0 Fullscreen 1 Font 18/SmallcapsGlow Map View 76x50 Tactical HUD 1 Map Filters NONE Filters NONE Steam 1 RUN: 056e2c3c-c078-451c-9e7c-e70e64bf8b52